fUSD/lending_fUSD_20260401
["ID","MTS","AMOUNT","RATE_DAILY","PERIOD"]
[419185703,1775010674398,-500.0,0.0003067,2]
[419185704,1775010674408,-234.91244304,0.00030685,2]
[419185705,1775010674417,-8000.0,0.000308,120]
[419185706,1775010674428,-1000.0,0.00030803,2]
[419185707,1775010674437,-168.0,0.00030819,2]
[419185708,1775010674447,-1014.36,0.00030865,30]
[419185709,1775010674456,-1000.0,0.0003087,2]
[419185710,1775010674675,-500.0,0.0003087,2]
[419185711,1775010674685,-162.0,0.00030899,3]
[419185712,1775010674694,-2807.0,0.00030899,3]
[419185713,1775010674703,-1346.0,0.0003096,2]
[419185714,1775010674712,-168.0,0.00030961,2]
[419185715,1775010674721,-168.0,0.00030962,2]
[419185716,1775010674731,-199.0,0.00031,2]
[419185717,1775010674740,-200.0,0.00031,11]
[419185718,1775010674749,-341.90321541,0.00031,120]
[419185719,1775010674759,-160.0,0.00031,120]
[419185720,1775010674768,-150.0,0.00031057,120]
[419185721,1775010674777,-800.0,0.00031082,21]
[419185722,1775010674786,-504.0,0.0003112,17]
[419185723,1775010674796,-1263.0,0.00031138,2]
[419185724,1775010674805,-621.0,0.00031138,2]
[419185725,1775010674815,-3519.0,0.00031138,2]
[419185726,1775010674824,-1014.36,0.00031154,30]
[419185727,1775010674834,-1000.0,0.00031167,2]
[419185728,1775010674844,-2809.0,0.00031267,3]
[419185729,1775010674853,-168.0,0.00031285,2]
[419185730,1775010674863,-151.0,0.00031297,7]
[419185731,1775010674872,-6495.7851,0.000313,77]
[419185732,1775010674882,-1300.0,0.00031356,21]
[419185733,1775010674892,-580.0,0.00031398,3]
[419185734,1775010674902,-371.0,0.000314,120]
[419185735,1775010674912,-1014.36,0.00031442,30]
[419185736,1775010674921,-150.0,0.0003147,2]
[419185737,1775010674930,-805.6,0.00031494,2]
[419185738,1775010674940,-152.0,0.00031597,7]
[419185739,1775010674949,-2809.0,0.00031612,3]
[419185740,1775010674959,-250.0,0.00031627,20]
[419185741,1775010674969,-2809.0,0.00031712,3]
[419185742,1775010674978,-160.0,0.00031712,3]
[419185743,1775010674989,-1014.36,0.00031731,30]
[419185744,1775010674998,-152.0,0.0003176,5]
[419185745,1775010675007,-2000.0,0.000318,2]
[419185746,1775010675017,-800.0,0.00031904,21]
[419185747,1775010675026,-1571.0,0.00031933,3]
[419185748,1775010675035,-500.0,0.00031999,7]
[419185749,1775010675045,-500.0,0.00031999,7]
[419185750,1775010675055,-500.0,0.00031999,7]
[419185751,1775010675065,-500.0,0.00031999,7]
[419185752,1775010675075,-500.0,0.00031999,7]
[419185753,1775010675086,-500.0,0.00031999,7]
[419185754,1775010675096,-500.0,0.00031999,7]
[419185755,1775010675104,-500.0,0.00031999,7]
[419185756,1775010675114,-500.0,0.00031999,7]
[419185757,1775010675124,-500.0,0.00031999,7]
[419185758,1775010675134,-500.0,0.00031999,7]
[419185759,1775010675144,-257.16,0.00031999,7]
[419185760,1775010675154,-500.0,0.00031999,7]
[419185761,1775010675163,-500.0,0.00031999,7]
[419185762,1775010675172,-500.0,0.00031999,7]
[419185763,1775010675181,-500.0,0.00031999,7]
[419185764,1775010675192,-500.0,0.00031999,7]
[419185765,1775010675202,-500.0,0.00031999,7]
[419185766,1775010675211,-500.0,0.00031999,7]
[419185767,1775010675222,-500.0,0.00031999,7]
[419185768,1775010675231,-500.0,0.00031999,7]
[419185769,1775010675240,-500.0,0.00031999,7]
[419185770,1775010675250,-500.0,0.00031999,7]
[419185771,1775010675259,-500.0,0.00031999,7]
[419185772,1775010675269,-500.0,0.00031999,7]
[419185773,1775010675278,-500.0,0.00031999,7]
[419185774,1775010675288,-500.0,0.00031999,7]
[419185775,1775010675297,-500.0,0.00031999,7]
[419185776,1775010675306,-500.0,0.00031999,7]
[419185777,1775010675315,-500.0,0.00031999,7]
[419185778,1775010675324,-500.0,0.00031999,7]
[419185779,1775010675333,-500.0,0.00031999,7]
[419185780,1775010675343,-500.0,0.00031999,7]
[419185781,1775010675352,-500.0,0.00031999,7]
[419185782,1775010675361,-500.0,0.00031999,7]
[419185783,1775010675371,-500.0,0.00031999,7]
[419185784,1775010675380,-500.0,0.00031999,7]
[419185785,1775010675390,-500.0,0.00031999,7]
[419185786,1775010675399,-567.71,0.00031999,7]
[419185787,1775010675408,-418.87883661,0.00032,120]
[419185788,1775010675418,-183.55573245,0.00032,120]
[419185789,1775010675427,-640.11469306,0.00032,120]
[419185790,1775010675436,-278.52389333,0.00032,120]
[419185791,1775010675445,-469.97507378,0.00032,120]
[419185792,1775010675454,-553.3575354,0.00032,120]
[419185793,1775010675463,-2210.62742498,0.00032,120]
[419185794,1775010675473,-500.0,0.00032,7]
[419185795,1775010675482,-507.57,0.00032,7]
[419185796,1775010675491,-500.0,0.00032,7]
[419185797,1775010675501,-500.0,0.00032,7]
[419185798,1775010675510,-500.0,0.00032,7]
[419185799,1775010675519,-452.35,0.00032,7]
[419185800,1775010675529,-500.0,0.00032,7]
[419185801,1775010675540,-500.0,0.00032,7]
[419185802,1775010675550,-500.0,0.00032,7]
[419185803,1775010675559,-500.0,0.00032,7]
[419185804,1775010675569,-500.0,0.00032,7]
[419185805,1775010675578,-500.0,0.00032,7]
[419185806,1775010675587,-500.0,0.00032,7]
[419185807,1775010675596,-500.0,0.00032,7]
[419185808,1775010675606,-500.0,0.00032,7]
[419185809,1775010675615,-500.0,0.00032,7]
[419185810,1775010675625,-500.0,0.00032,7]
[419185811,1775010675634,-500.0,0.00032,7]
[419185812,1775010675644,-500.0,0.00032,7]
[419185813,1775010675654,-500.0,0.00032,7]
[419185814,1775010675663,-500.0,0.00032,7]
[419185815,1775010675673,-500.0,0.00032,7]
[419185816,1775010675683,-500.0,0.00032,7]
[419185817,1775010675692,-500.0,0.00032,7]
[419185818,1775010675702,-500.0,0.00032,7]
[419185819,1775010675711,-500.0,0.00032,7]
[419185820,1775010675721,-500.0,0.00032,7]
[419185821,1775010675730,-500.0,0.00032,7]
[419185822,1775010675740,-500.0,0.00032,7]
[419185823,1775010675749,-500.0,0.00032,7]
[419185824,1775010675758,-500.0,0.00032,7]
[419185825,1775010675767,-221.44526151,0.00032,120]
[419185826,1775010675776,-200.0,0.00032,12]
[419185827,1775010675785,-300.0,0.00032,120]
[419185828,1775010675795,-179.7765907,0.00032,120]
[419185829,1775010675804,-160.0,0.00032,120]
[419185830,1775010675813,-1131.9644681,0.0003201,2]
[419185831,1775010675823,-1014.36,0.00032019,120]
[419185832,1775010675833,-1300.0,0.00032178,21]
[419185833,1775010675843,-1014.36,0.00032308,120]
[419185834,1775010675852,-393.70246722,0.00032329,7]
[419185835,1775010675861,-2818.0,0.00032352,11]
[419185836,1775010675871,-150.0,0.00032354,2]
[419185837,1775010675880,-231.82394053,0.00032363,2]
[419185838,1775010675890,-445.84,0.000324,30]
[419185839,1775010675899,-250.0,0.00032402,2]
[419185840,1775010675909,-250.0,0.00032402,2]
[419185841,1775010675918,-235.0,0.00032402,2]
[419185842,1775010675927,-504.0,0.00032406,18]
[419185843,1775010675936,-1000.0,0.00032423,2]
[419185844,1775010675946,-1000.0,0.00032449,2]
[419185845,1775010675955,-150.0,0.00032475,2]
[419185846,1775010675964,-150.0,0.00032559,2]
[419185847,1775010675973,-150.0,0.00032591,2]
[419185848,1775010675983,-1014.36,0.00032596,120]
[419185849,1775010675994,-8350.9203,0.000326,82]
[419185850,1775010676004,-1000.0,0.00032633,2]
[419185851,1775010676014,-214.20886618,0.00032662,2]
[419185852,1775010676024,-360.83853,0.0003267,34]
[419185853,1775010676034,-360.83854,0.0003267,34]
[419185854,1775010676043,-2809.0,0.00032672,11]
[419185855,1775010676053,-299.04270032,0.000327,2]
[419185856,1775010676062,-299.04270032,0.000327,2]
[419185857,1775010676072,-299.04270032,0.000327,2]
[419185858,1775010676082,-299.04270032,0.000327,2]
[419185859,1775010676091,-299.04270032,0.000327,2]
[419185860,1775010676101,-299.04270032,0.000327,2]
[419185861,1775010676110,-299.04270032,0.000327,2]
[419185862,1775010676120,-299.04270032,0.000327,2]
[419185863,1775010676129,-299.04270032,0.000327,2]
[419185864,1775010676139,-299.04270032,0.000327,2]
[419185865,1775010676151,-299.04270032,0.000327,2]
[419185866,1775010676162,-299.04270032,0.000327,2]
[419185867,1775010676171,-299.04270032,0.000327,2]
[419185868,1775010676183,-299.04270032,0.000327,2]
[419185869,1775010676193,-299.04270032,0.000327,2]
[419185870,1775010676203,-299.04270032,0.000327,2]
[419185871,1775010676213,-299.04270032,0.000327,2]
[419185872,1775010676222,-299.04270032,0.000327,2]
[419185873,1775010676233,-1000.0,0.00032714,2]
[419185874,1775010676242,-800.0,0.00032726,21]
[419185875,1775010676253,-152.0,0.0003274,8]
[419185876,1775010676263,-1000.0,0.00032761,2]
[419185877,1775010676272,-569.25355257,0.00032793,2]
[419185878,1775010676281,-425.0,0.00032798,2]
[419185879,1775010676290,-10029.7504142,0.000328,2]
[419185880,1775010676300,-150.0,0.000328,2]
[419185881,1775010676309,-200.0,0.000328,11]
[419185882,1775010676318,-800.0,0.00032822,120]
[419185883,1775010676327,-1000.0,0.00032855,2]
[419185884,1775010676337,-1000.0,0.00032859,2]
[419185885,1775010676346,-385.49196168,0.00032876,2]
[419185886,1775010676355,-442.10871564,0.00032876,2]
[419185887,1775010676365,-500.0,0.00032876,2]
[419185888,1775010676377,-500.0,0.00032876,2]
[419185889,1775010676387,-455.207942,0.00032876,2]
[419185890,1775010676397,-535.92076066,0.00032876,2]
[419185891,1775010676407,-500.0,0.00032876,2]
[419185892,1775010676416,-500.0,0.00032876,2]
[419185893,1775010676426,-500.0,0.00032876,2]
[419185894,1775010676436,-500.0,0.00032876,2]
[419185895,1775010676445,-500.0,0.00032876,2]
[419185896,1775010676455,-500.0,0.00032876,2]
[419185897,1775010676464,-500.0,0.00032876,2]
[419185898,1775010676473,-500.0,0.00032876,2]
[419185899,1775010676483,-500.0,0.00032876,2]
[419185900,1775010676492,-404.18474144,0.00032876,2]
[419185901,1775010676501,-500.0,0.00032876,2]
[419185902,1775010676511,-597.354744,0.00032876,2]
[419185903,1775010676520,-500.0,0.00032876,2]
[419185904,1775010676530,-500.0,0.00032876,2]
[419185905,1775010676540,-500.0,0.00032876,2]
[419185906,1775010676549,-500.0,0.00032876,2]
[419185907,1775010676559,-243.47157866,0.00032876,2]
[419185908,1775010676569,-500.0,0.00032876,2]
[419185909,1775010676578,-500.0,0.00032876,2]
[419185910,1775010676587,-500.0,0.00032876,2]
[419185911,1775010676596,-635.47425382,0.00032876,2]
[419185912,1775010676606,-500.0,0.00032876,2]
[419185913,1775010676615,-500.0,0.00032876,2]
[419185914,1775010676625,-500.0,0.00032876,2]
[419185915,1775010676634,-500.0,0.00032876,2]
[419185916,1775010676644,-1800.0,0.00032877,2]
[419185917,1775010676653,-1800.0,0.00032877,2]
[419185918,1775010676662,-1800.0,0.00032877,2]
[419185919,1775010676671,-1800.0,0.00032877,2]
[419185920,1775010676681,-1800.0,0.00032877,2]
[419185921,1775010676690,-1800.0,0.00032877,2]
[419185922,1775010676699,-1800.0,0.00032877,2]
[419185923,1775010676708,-1800.0,0.00032877,2]
[419185924,1775010676718,-1800.0,0.00032877,2]
[419185925,1775010676726,-1800.0,0.00032877,2]
[419185926,1775010676736,-1800.0,0.00032877,2]
[419185927,1775010676748,-1800.0,0.00032877,2]
[419185928,1775010676757,-202.0,0.00032877,2]
[419185929,1775010676767,-150.0,0.00032877,2]
[419185930,1775010676776,-165.0,0.00032877,2]
[419185931,1775010676786,-173.32,0.00032877,2]
[419185932,1775010676795,-196.226046,0.00032877,7]
[419185933,1775010676804,-196.226046,0.00032877,7]
[419185934,1775010676813,-196.226046,0.00032877,7]
[419185935,1775010676823,-196.226046,0.00032877,7]
[419185936,1775010676833,-196.226046,0.00032877,7]
[419185937,1775010676842,-196.226046,0.00032877,7]
[419185938,1775010676851,-196.226046,0.00032877,7]
[419185939,1775010676862,-196.226046,0.00032877,7]
[419185940,1775010676871,-196.226046,0.00032877,7]
[419185941,1775010676883,-196.226046,0.00032877,7]
[419185942,1775010676892,-196.226046,0.00032877,7]
[419185943,1775010676902,-196.226046,0.00032877,7]
[419185944,1775010676911,-4589.596736,0.00032877,7]
[419185945,1775010676921,-4589.596736,0.00032877,7]
[419185946,1775010676930,-4589.596736,0.00032877,7]
[419185947,1775010676941,-4589.596736,0.00032877,7]
[419185948,1775010676952,-4589.596736,0.00032877,7]
[419185949,1775010676962,-4589.596736,0.00032877,7]
[419185950,1775010676972,-4589.596736,0.00032877,7]
[419185951,1775010676981,-4589.596736,0.00032877,7]
[419185952,1775010676990,-4589.596736,0.00032877,7]
[419185953,1775010677000,-4589.596736,0.00032877,7]
[419185954,1775010677010,-4589.596736,0.00032877,7]
[419185955,1775010677018,-4589.596736,0.00032877,7]
[419185956,1775010677027,-639.957997,0.00032877,7]
[419185957,1775010677038,-639.957997,0.00032877,7]
[419185958,1775010677049,-639.957997,0.00032877,7]
[419185959,1775010677058,-639.957997,0.00032877,7]
[419185960,1775010677068,-639.957997,0.00032877,7]
[419185961,1775010677078,-639.957997,0.00032877,7]
[419185962,1775010677087,-639.957997,0.00032877,7]
[419185963,1775010677096,-639.957997,0.00032877,7]
[419185964,1775010677105,-178.585789,0.00032877,7]
[419185965,1775010677114,-349.539048,0.00032877,7]
[419185966,1775010677124,-178.585789,0.00032877,7]
[419185967,1775010677133,-2900.360395,0.00032877,5]
[419185968,1775010677142,-349.539048,0.00032877,7]
[419185969,1775010677151,-178.585789,0.00032877,7]
[419185970,1775010677160,-2900.360395,0.00032877,5]
[419185971,1775010677169,-151.0,0.00032877,7]
[419185972,1775010677178,-151.0,0.00032877,7]
[419185973,1775010677187,-349.539048,0.00032877,7]
[419185974,1775010677197,-178.585789,0.00032877,7]
[419185975,1775010677207,-310.869876,0.00032877,7]
[419185976,1775010677216,-2900.360395,0.00032877,5]
[419185977,1775010677225,-151.0,0.00032877,7]
[419185978,1775010677235,-349.539048,0.00032877,7]
[419185979,1775010677243,-151.0,0.00032877,7]
[419185980,1775010677253,-310.869876,0.00032877,7]
[419185981,1775010677262,-2900.360395,0.00032877,5]
[419185982,1775010677271,-151.0,0.00032877,7]
[419185983,1775010677280,-151.0,0.00032877,7]
[419185984,1775010677290,-173.356592,0.00032877,7]
[419185985,1775010677299,-432.594449,0.00032877,7]
[419185986,1775010677309,-310.869876,0.00032877,7]
[419185987,1775010677318,-432.594449,0.00032877,7]
[419185988,1775010677329,-173.356592,0.00032877,7]
[419185989,1775010677339,-151.0,0.00032877,7]
[419185990,1775010677348,-310.869876,0.00032877,7]
[419185991,1775010677358,-283.391457,0.00032877,7]
[419185992,1775010677367,-432.594449,0.00032877,7]
[419185993,1775010677376,-173.356592,0.00032877,7]
[419185994,1775010677388,-302.638113,0.00032877,7]
[419185995,1775010677397,-173.235551,0.00032877,7]
[419185996,1775010677409,-432.594449,0.00032877,7]
[419185997,1775010677418,-283.391457,0.00032877,7]
[419185998,1775010677427,-173.356592,0.00032877,7]
[419185999,1775010677436,-302.638113,0.00032877,7]
[419186000,1775010677445,-157.060162,0.00032877,7]
[419186001,1775010677455,-173.235551,0.00032877,7]
[419186002,1775010677465,-583.094244,0.00032877,7]
[419186003,1775010677474,-1000.695283,0.00032877,7]
[419186004,1775010677484,-283.391457,0.00032877,7]
[419186005,1775010677493,-302.638113,0.00032877,7]
[419186006,1775010677502,-173.235551,0.00032877,7]
[419186007,1775010677511,-583.094244,0.00032877,7]
[419186008,1775010677522,-1000.695283,0.00032877,7]
[419186009,1775010677532,-283.391457,0.00032877,7]
[419186010,1775010677542,-302.638113,0.00032877,7]
[419186011,1775010677551,-583.094244,0.00032877,7]
[419186012,1775010677560,-587.336107,0.00032877,7]
[419186013,1775010677570,-1000.695283,0.00032877,7]
[419186014,1775010677579,-173.235551,0.00032877,7]
[419186015,1775010677588,-583.094244,0.00032877,7]
[419186016,1775010677597,-587.336107,0.00032877,7]
[419186017,1775010677607,-1000.695283,0.00032877,7]
[419186018,1775010677616,-151.0,0.00032877,7]
[419186019,1775010677625,-587.336107,0.00032877,7]
[419186020,1775010677635,-587.336107,0.00032877,7]
[419186021,1775010677646,-151.0,0.00032877,7]
[419186022,1775010677657,-151.0,0.00032877,7]
[419186023,1775010677667,-151.0,0.00032877,7]
[419186024,1775010677676,-689.341716,0.00032877,7]
[419186025,1775010677685,-201.137594,0.00032877,7]
[419186026,1775010677696,-319.999827,0.00032877,7]
[419186027,1775010677706,-689.341716,0.00032877,7]
[419186028,1775010677716,-201.137594,0.00032877,7]
[419186029,1775010677726,-319.999827,0.00032877,7]
[419186030,1775010677735,-689.341716,0.00032877,7]
[419186031,1775010677745,-201.137594,0.00032877,7]
[419186032,1775010677754,-319.999827,0.00032877,7]
[419186033,1775010677763,-689.341716,0.00032877,7]
[419186034,1775010677772,-3276.685982,0.00032877,7]
[419186035,1775010677781,-201.137594,0.00032877,7]
[419186036,1775010677790,-319.999827,0.00032877,7]
[419186037,1775010677800,-266.850709,0.00032877,7]
[419186038,1775010677810,-3276.685982,0.00032877,7]
[419186039,1775010677819,-266.850709,0.00032877,7]
[419186040,1775010677828,-3276.685982,0.00032877,7]
[419186041,1775010677839,-492.031885,0.00032877,7]
[419186042,1775010677848,-266.850709,0.00032877,7]
[419186043,1775010677859,-3276.685982,0.00032877,7]
[419186044,1775010677868,-492.031885,0.00032877,7]
[419186045,1775010677878,-266.850709,0.00032877,7]
[419186046,1775010677888,-492.031885,0.00032877,7]
[419186047,1775010677899,-151.0,0.00032877,7]
[419186048,1775010677910,-492.031885,0.00032877,7]
[419186049,1775010677920,-390.14726,0.00032877,7]
[419186050,1775010677930,-151.0,0.00032877,7]
[419186051,1775010677940,-390.14726,0.00032877,7]
[419186052,1775010677950,-390.14726,0.00032877,7]
[419186053,1775010677961,-151.0,0.00032877,7]
[419186054,1775010677972,-390.14726,0.00032877,7]
[419186055,1775010677982,-644.599907,0.00032877,7]
[419186056,1775010677992,-151.0,0.00032877,7]
[419186057,1775010678001,-151.0,0.00032877,7]
[419186058,1775010678012,-1736.096161,0.00032877,7]
[419186059,1775010678021,-644.599907,0.00032877,7]
[419186060,1775010678031,-151.0,0.00032877,7]
[419186061,1775010678040,-1736.096161,0.00032877,7]
[419186062,1775010678050,-644.599907,0.00032877,7]
[419186063,1775010678059,-1736.096161,0.00032877,7]
[419186064,1775010678069,-644.599907,0.00032877,7]
[419186065,1775010678080,-283.450563,0.00032877,7]
[419186066,1775010678091,-256.203795,0.00032877,7]
[419186067,1775010678102,-1736.096161,0.00032877,7]
[419186068,1775010678113,-283.450563,0.00032877,7]
[419186069,1775010678125,-256.203795,0.00032877,7]
[419186070,1775010678135,-252.213811,0.00032877,7]
[419186071,1775010678146,-1888.020243,0.00032877,7]
[419186072,1775010678155,-283.450563,0.00032877,7]
[419186073,1775010678165,-256.203795,0.00032877,7]
[419186074,1775010678175,-252.213811,0.00032877,7]
[419186075,1775010678184,-244.3815,0.00032877,7]
[419186076,1775010678194,-1888.020243,0.00032877,7]
[419186077,1775010678203,-283.450563,0.00032877,7]
[419186078,1775010678212,-152.754954,0.00032877,7]
[419186079,1775010678222,-256.203795,0.00032877,7]
[419186080,1775010678231,-252.213811,0.00032877,7]
[419186081,1775010678240,-1888.020243,0.00032877,7]
[419186082,1775010678250,-152.754954,0.00032877,7]
[419186083,1775010678260,-252.213811,0.00032877,7]
[419186084,1775010678269,-1888.020243,0.00032877,7]
[419186085,1775010678278,-152.754954,0.00032877,7]
[419186086,1775010678287,-152.754954,0.00032877,7]
[419186087,1775010678297,-244.3815,0.00032877,7]
[419186088,1775010678306,-244.3815,0.00032877,7]
[419186089,1775010678315,-244.3815,0.00032877,7]
[419186090,1775010678324,-609.890694,0.00032877,7]
[419186091,1775010678334,-609.890694,0.00032877,7]
[419186092,1775010678472,-609.890694,0.00032877,7]
[419186093,1775010678483,-269.689,0.00032877,7]
[419186094,1775010678493,-609.890694,0.00032877,7]
[419186095,1775010678503,-151.0,0.00032877,7]
[419186096,1775010678512,-269.689,0.00032877,7]
[419186097,1775010678522,-434.923258,0.00032877,7]
[419186098,1775010678532,-151.0,0.00032877,7]
[419186099,1775010678541,-269.689,0.00032877,7]
[419186100,1775010678550,-434.923258,0.00032877,7]
[419186101,1775010678561,-151.0,0.00032877,7]
[419186102,1775010678570,-984.6392,0.00032877,7]
[419186103,1775010678582,-151.0,0.00032877,7]
[419186104,1775010678591,-269.689,0.00032877,7]
[419186105,1775010678601,-434.923258,0.00032877,7]
[419186106,1775010678612,-151.0,0.00032877,7]
[419186107,1775010678621,-984.6392,0.00032877,7]
[419186108,1775010678630,-151.0,0.00032877,7]
[419186109,1775010678640,-434.923258,0.00032877,7]
[419186110,1775010678650,-984.6392,0.00032877,7]
[419186111,1775010678659,-151.0,0.00032877,7]
[419186112,1775010678669,-984.6392,0.00032877,7]
[419186113,1775010678679,-171.872855,0.00032877,7]
[419186114,1775010678688,-420.0,0.00032877,7]
[419186115,1775010678698,-420.0,0.00032877,7]
[419186116,1775010678707,-420.0,0.00032877,7]
[419186117,1775010678716,-420.0,0.00032877,7]
[419186118,1775010678726,-151.0,0.00032877,7]
[419186119,1775010678735,-151.0,0.00032877,7]
[419186120,1775010678745,-151.0,0.00032877,7]
[419186121,1775010678754,-402.472625,0.00032877,7]
[419186122,1775010678764,-402.472625,0.00032877,7]
[419186123,1775010678773,-484.086168,0.00032877,7]
[419186124,1775010678782,-402.472625,0.00032877,7]
[419186125,1775010678792,-484.086168,0.00032877,7]
[419186126,1775010678801,-402.472625,0.00032877,7]
[419186127,1775010678812,-484.086168,0.00032877,7]
[419186128,1775010678821,-484.086168,0.00032877,7]
[419186129,1775010678831,-296.09292,0.00032877,7]
[419186130,1775010678841,-674.118128,0.00032877,7]
[419186131,1775010678851,-499.964857,0.00032877,7]
[419186132,1775010678861,-296.09292,0.00032877,7]
[419186133,1775010678871,-3504.13553,0.00032877,7]
[419186134,1775010678883,-1471.650873,0.00032877,7]
[419186135,1775010678895,-151.0,0.00032877,7]
[419186136,1775010678907,-674.118128,0.00032877,7]
[419186137,1775010678917,-296.09292,0.00032877,7]
[419186138,1775010678927,-499.964857,0.00032877,7]
[419186139,1775010678937,-3504.13553,0.00032877,7]
[419186140,1775010678948,-151.0,0.00032877,7]
[419186141,1775010678958,-1471.650873,0.00032877,7]
[419186142,1775010678969,-674.118128,0.00032877,7]
[419186143,1775010678978,-499.964857,0.00032877,7]
[419186144,1775010678988,-296.09292,0.00032877,7]
[419186145,1775010678999,-1216.398463,0.00032877,7]
[419186146,1775010679010,-151.0,0.00032877,7]
[419186147,1775010679021,-182.996587,0.00032877,7]
[419186148,1775010679030,-1471.650873,0.00032877,7]
[419186149,1775010679042,-497.861921,0.00032877,7]
[419186150,1775010679051,-499.964857,0.00032877,7]
[419186151,1775010679061,-151.0,0.00032877,7]
[419186152,1775010679072,-1216.398463,0.00032877,7]
[419186153,1775010679083,-151.0,0.00032877,7]
[419186154,1775010679093,-11991.582422,0.00032877,2]
[419186155,1775010679104,-151.0,0.00032877,7]
[419186156,1775010679113,-1471.650873,0.00032877,7]
[419186157,1775010679122,-497.861921,0.00032877,7]
[419186158,1775010679132,-1663.831124,0.00032877,7]
[419186159,1775010679142,-3253.849364,0.00032877,7]
[419186160,1775010679151,-1216.398463,0.00032877,7]
[419186161,1775010679161,-151.0,0.00032877,7]
[419186162,1775010679171,-450.361421,0.00032877,7]
[419186163,1775010679180,-11991.582422,0.00032877,2]
[419186164,1775010679190,-418.465845,0.00032877,7]
[419186165,1775010679199,-3504.13553,0.00032877,7]
[419186166,1775010679210,-1663.831124,0.00032877,7]
[419186167,1775010679219,-3253.849364,0.00032877,7]
[419186168,1775010679229,-1216.398463,0.00032877,7]
[419186169,1775010679239,-151.0,0.00032877,7]
[419186170,1775010679248,-497.861921,0.00032877,7]
[419186171,1775010679258,-450.361421,0.00032877,7]
[419186172,1775010679268,-11991.582422,0.00032877,2]
[419186173,1775010679278,-3031.562776,0.00032877,7]
[419186174,1775010679288,-1663.831124,0.00032877,7]
[419186175,1775010679298,-3504.13553,0.00032877,7]
[419186176,1775010679307,-3253.849364,0.00032877,7]
[419186177,1775010679317,-497.861921,0.00032877,7]
[419186178,1775010679327,-450.361421,0.00032877,7]
[419186179,1775010679336,-11991.582422,0.00032877,2]
[419186180,1775010679346,-237.488442,0.00032877,7]
[419186181,1775010679355,-3031.562776,0.00032877,7]
[419186182,1775010679365,-3253.849364,0.00032877,7]
[419186183,1775010679375,-1663.831124,0.00032877,7]
[419186184,1775010679385,-450.361421,0.00032877,7]
[419186185,1775010679395,-428.732542,0.00032877,7]
[419186186,1775010679405,-237.488442,0.00032877,7]
[419186187,1775010679415,-3031.562776,0.00032877,7]
[419186188,1775010679428,-151.0,0.00032877,7]
[419186189,1775010679438,-428.732542,0.00032877,7]
[419186190,1775010679448,-304.136707,0.00032877,7]
[419186191,1775010679459,-237.488442,0.00032877,7]
[419186192,1775010679471,-1481.011134,0.00032877,7]
[419186193,1775010679481,-3031.562776,0.00032877,7]
[419186194,1775010679492,-151.0,0.00032877,2]
[419186195,1775010679502,-216.421853,0.00032877,7]
[419186196,1775010679512,-151.0,0.00032877,7]
[419186197,1775010679523,-428.732542,0.00032877,7]
[419186198,1775010679533,-362.327997,0.00032877,7]
[419186199,1775010679543,-304.136707,0.00032877,7]
[419186200,1775010679552,-1481.011134,0.00032877,7]
[419186201,1775010679562,-151.0,0.00032877,2]
[419186202,1775010679572,-216.421853,0.00032877,7]